bitfinex-derivatives/quotes_SOLF0:USTF0_20250518
["timestamp","ask_amount","ask_price","bid_price","bid_amount"]
[1747593709623,70.92,170.2,170.12,70.92]
[1747593709923,5.8749,170.15,170.12,70.92]
[1747593710120,70.92,170.2,170.12,70.92]
[1747593710422,93.99794699,170.2,170.08,70.92]
[1747593710632,23.07794699,170.16,170.05,70.92]
[1747593710810,145.5302,170.15,169.95,5.8202]
[1747593711015,23.07794699,170.12,169.95,5.8202]
[1747593711217,1.8906,170.11,169.99,578.3]
[1747593711420,141.64,170.1,169.99,578.3]
[1747593712024,5.877,170.09,170.03,5.8787]
[1747593712224,141.64,170.1,169.99,578.3]
[1747593712724,70.72,170.1,169.99,578.3]
[1747593713528,5.8767,170.09,170.03,5.8785]
[1747593713822,70.72,170.1,169.99,578.3]
[1747593714326,141.64,170.14,169.99,578.3]
[1747593714525,70.7,170.14,169.99,578.3]
[1747593714721,28.8861,170.22,169.99,578.3]
[1747593714722,28.8861,170.22,170.01,23.07794699]
[1747593714923,5.8976,170.22,170.05,23.07794699]
[1747593715122,70.7,170.21,170.06,76.9646]
[1747593715322,5.8735,170.19,170.13,5.8751]
[1747593715622,5.8735,170.19,170.13,76.8151]
[1747593715826,70.7,170.21,170.13,70.94]
[1747593717420,70.7,170.21,170.09,70.94]
[1747593717622,70.7,170.21,170.1,5.8761]
[1747593717623,5.8746,170.16,170.1,5.8761]
[1747593717930,5.8976,170.22,170.09,70.94]
[1747593718131,70.66,170.21,170.09,70.94]
[1747593718731,5.8742,170.17,170.11,5.8757]
[1747593718929,70.66,170.21,170.09,70.94]
[1747593719438,70.94,170.23,170.09,70.94]
[1747593719624,70.94,170.23,170.09,578.74]
[1747593719824,76.8629,170.27,170.09,578.74]
[1747593720024,70.64,170.25,170.09,578.74]
[1747593720335,76.5112,170.25,170.19,5.873]
[1747593720525,76.5112,170.25,170.18,70.94]
[1747593720526,70.64,170.25,170.18,70.94]
[1747593720925,5.8725,170.22,170.18,70.94]
[1747593721127,70.64,170.25,170.18,70.94]
[1747593721433,5.8719,170.23,170.18,70.94]
[1747593721835,70.64,170.25,170.18,70.94]
[1747593723038,5.8718,170.24,170.19,5.8732]
[1747593723236,70.64,170.25,170.18,70.94]
[1747593724732,5.8719,170.23,170.18,70.94]
[1747593724936,628.43794699,170.33,170.19,70.56]
[1747593725140,72.5956,170.32,170.19,74.5088]
[1747593726130,70.56,170.31,170.19,74.5088]
[1747593726337,70.56,170.31,170.19,76.5378]
[1747593726539,3.849,170.33,170.19,76.5378]
[1747593726837,75.82157122,170.36,170.2,530.67794699]
[1747593727041,70.54,170.36,170.2,530.67794699]
[1747593728237,5.8683,170.34,170.2,530.67794699]
[1747593728544,72.5556,170.37,170.2,530.67794699]
[1747593728739,73.72951559,170.37,170.2,530.67794699]
[1747593728940,5.8685,170.33,170.27,5.8702]
[1747593729142,73.72951559,170.37,170.28,70.56]
[1747593729646,96.80746258,170.37,170.26,70.56]
[1747593730146,26.28746258,170.37,170.26,70.56]
[1747593730341,70.5,170.36,170.26,70.56]
[1747593730941,70.5,170.36,170.2,507.6]
[1747593731145,70.5,170.36,170.21,5.8724]
[1747593731146,5.8712,170.25,170.21,5.8724]
[1747593731444,70.48,170.3,170.21,5.8724]
[1747593731744,5.8709,170.26,170.21,5.8724]
[1747593731947,70.48,170.3,170.2,578.14]
[1747593732144,76.3497,170.3,170.2,578.14]
[1747593732336,70.48,170.3,170.21,1.8775]
[1747593732537,70.48,170.3,170.22,5.8719]
[1747593732737,5.8707,170.27,170.21,1.8775]
[1747593732938,70.48,170.3,170.21,1.8775]
[1747593733938,70.44,170.34,170.21,1.8775]
[1747593734135,3.20951559,170.37,170.21,1.8775]
[1747593734339,1.17391559,170.37,170.21,1.8775]
[1747593734840,1.17391559,170.37,170.26,5.8705]
[1747593735045,24.25186258,170.37,170.27,70.54]
[1747593735246,24.25186258,170.37,170.21,1.8775]
[1747593735447,24.25186258,170.37,170.24,70.54]
[1747593736151,24.25186258,170.37,170.26,5.8705]
[1747593736648,24.25186258,170.37,170.28,5.8701]
[1747593736945,70.4,170.36,170.24,70.54]
[1747593737448,5.8687,170.33,170.24,70.54]
[1747593737749,70.4,170.36,170.24,70.54]
[1747593738550,5.8693,170.31,170.26,5.8705]
[1747593738747,70.4,170.36,170.24,70.54]
[1747593738945,70.52,170.35,170.24,70.54]
[1747593739143,5.8689,170.32,170.24,70.54]
[1747593739548,70.36,170.34,170.24,70.54]
[1747593740451,5.8688,170.32,170.27,5.8705]
[1747593740644,70.36,170.34,170.24,70.54]
[1747593741148,2.0121,170.4,170.24,93.61794699]
[1747593741354,70.34,170.39,170.24,93.61794699]
[1747593741560,70.34,170.41,170.24,93.61794699]
[1747593741746,140.86,170.42,170.24,93.61794699]
[1747593742353,1.9147,170.45,170.28,23.07794699]
[1747593742547,70.32,170.44,170.29,146.718]
[1747593742746,70.32,170.44,170.3,507.32]
[1747593742949,5.8652,170.43,170.38,5.8666]
[1747593743556,70.32,170.44,170.37,70.5]
[1747593743847,70.32,170.44,170.34,70.5]
[1747593744450,70.32,170.44,170.3,507.32]
[1747593744654,5.8669,170.38,170.33,76.3683]
[1747593744949,70.32,170.44,170.33,70.5]
[1747593745148,5.8673,170.37,170.33,70.5]
[1747593745452,70.5,170.42,170.33,70.5]
[1747593746455,23.07794699,170.41,170.28,70.5]
[1747593746756,5.8691,170.31,170.28,70.5]
[1747593747446,70.26,170.35,170.28,70.5]
[1747593748254,76.1281,170.35,170.3,5.8694]
[1747593748458,70.26,170.35,170.28,70.5]
[1747593749555,5.8685,170.33,170.29,5.8697]
[1747593749757,5.8685,170.33,170.28,70.5]
[1747593750658,5.8685,170.33,170.28,76.37]
[1747593751065,70.26,170.35,170.28,70.5]
[1747593751361,70.26,170.35,170.28,76.37]
[1747593751570,76.128,170.35,170.28,70.5]
[1747593751859,70.26,170.35,170.28,70.5]
[1747593752062,70.26,170.35,170.31,5.869]
[1747593752255,70.2,170.38,170.28,70.5]
[1747593752662,5.868,170.35,170.28,70.5]
[1747593753160,70.5,170.41,170.28,70.5]
[1747593753355,140.68,170.41,170.28,70.5]
[1747593753554,140.68,170.41,170.29,1.9405]
[1747593753755,5.8666,170.39,170.34,5.8678]
[1747593754556,140.68,170.41,170.33,70.5]
[1747593755058,70.5,170.41,170.33,70.5]
[1747593755264,5.8672,170.37,170.33,70.5]
[1747593755663,5.8672,170.37,170.33,76.3684]
[1747593755865,70.16,170.4,170.33,70.5]
[1747593756268,5.8676,170.36,170.29,140.32]
[1747593756465,70.16,170.4,170.29,140.32]
[1747593756666,70.16,170.4,170.32,5.8687]
[1747593757359,5.8673,170.37,170.33,5.8684]
[1747593757657,70.16,170.4,170.29,140.32]
[1747593758267,75.8566,170.45,170.29,140.32]
[1747593758469,5.8659,170.41,170.36,5.8671]
[1747593758664,5.8659,170.41,170.35,70.14]
[1747593759164,5.8659,170.41,170.36,5.8672]
[1747593759370,70.12,170.44,170.33,70.14]
[1747593759863,70.12,170.44,170.37,5.867]
[1747593760065,70.12,170.44,170.33,70.14]
[1747593760370,70.12,170.44,170.36,5.8673]
[1747593760564,5.8661,170.4,170.36,5.8673]
[1747593760760,70.12,170.44,170.33,70.14]
[1747593761169,5.8662,170.4,170.33,70.14]
[1747593761771,5.8658,170.41,170.33,70.14]
[1747593762263,5.8658,170.41,170.36,5.8672]
[1747593763065,5.8658,170.41,170.33,70.14]
[1747593763670,5.8658,170.41,170.36,5.8672]
[1747593764369,5.8658,170.41,170.37,5.867]
[1747593764870,70.06,170.44,170.33,70.14]
[1747593765063,145.8766,170.45,170.33,70.14]
[1747593765263,75.7366,170.45,170.34,3.876]
[1747593765459,75.7366,170.45,170.35,70.02]
[1747593765866,5.8647,170.44,170.35,70.02]
[1747593766163,70.14,170.49,170.35,70.02]
[1747593766365,5.8644,170.45,170.35,70.02]
[1747593766858,70.0,170.48,170.35,70.02]
[1747593767171,5.8643,170.45,170.4,5.866]
[1747593767358,5.8643,170.45,170.38,70.14]
[1747593767771,5.8646,170.44,170.4,5.8657]
[1747593768564,70.0,170.46,170.38,70.14]
[1747593769070,5.8652,170.43,170.38,76.0065]
[1747593769373,69.96,170.47,170.38,70.14]
[1747593769572,75.9399,170.49,170.38,70.14]
[1747593769865,5.8642,170.46,170.41,5.8655]
[1747593770065,69.96,170.48,170.38,70.14]
[1747593770265,75.8233,170.48,170.38,70.14]
[1747593770576,75.9399,170.49,170.38,70.14]
[1747593770770,11.14417122,170.5,170.46,5.8639]
[1747593771472,5.28157122,170.5,170.43,70.12]
[1747593771967,5.28157122,170.5,170.46,5.8637]
[1747593772175,69.94,170.51,170.46,5.8637]
[1747593772573,5.8626,170.5,170.46,5.8637]
[1747593772762,69.92,170.52,170.46,5.8637]
[1747593773479,69.92,170.52,170.43,70.12]
[1747593773765,69.92,170.52,170.4,70.12]
[1747593773971,5.8635,170.48,170.44,5.8645]
[1747593774172,69.92,170.52,170.4,70.12]
[1747593774775,5.8642,170.46,170.41,5.8655]
[1747593775170,69.92,170.52,170.41,5.8655]
[1747593775573,5.8642,170.46,170.41,5.8655]
[1747593775981,5.8642,170.46,170.42,5.8653]
[1747593777172,5.8643,170.45,170.42,5.8653]
[1747593777377,5.8643,170.45,170.41,5.8656]
[1747593777872,69.92,170.52,170.4,70.12]
[1747593778078,69.84,170.51,170.4,70.12]
[1747593778579,5.8648,170.44,170.4,75.9859]
[1747593779079,69.84,170.46,170.4,70.12]
[1747593779579,75.7042,170.46,170.4,70.12]
[1747593780075,75.7042,170.46,170.42,5.8651]
[1747593780573,97.12,170.53,170.4,70.12]
[1747593780781,69.8,170.51,170.41,69.8]
[1747593780976,70.12,170.53,170.41,69.8]
[1747593781181,69.8,170.5,170.41,69.8]
[1747593781382,5.8642,170.46,170.42,5.8651]
[1747593781779,69.8,170.5,170.4,75.9859]
[1747593782082,69.8,170.5,170.4,70.12]
[1747593782381,5.8646,170.45,170.41,5.8654]
[1747593782584,69.78,170.44,170.2,128.47634869]
[1747593782882,5.8673,170.37,170.32,5.8685]
[1747593783079,69.78,170.38,170.29,70.1]
[1747593783575,69.78,170.41,170.29,70.1]
[1747593783775,69.78,170.41,170.31,69.76]
[1747593783974,75.6457,170.41,170.31,69.76]
[1747593784280,69.78,170.41,170.31,69.76]
[1747593784578,73.7018,170.44,170.32,2.0414]
[1747593785176,5.8656,170.42,170.37,5.8668]
[1747593785476,5.8656,170.42,170.36,69.76]
[1747593785679,73.7018,170.44,170.36,69.76]
[1747593786475,5.8663,170.4,170.36,69.76]
[1747593786681,5.8663,170.4,170.36,75.6273]
[1747593787086,73.7018,170.44,170.36,69.76]
[1747593787479,3.9218,170.44,170.36,69.76]
[1747593787782,69.74,170.43,170.38,5.8667]
[1747593788185,5.8653,170.42,170.38,5.8667]
[1747593788378,5.8653,170.42,170.39,5.8663]
[1747593789089,5.8653,170.42,170.38,5.8666]
[1747593789585,5.8657,170.41,170.38,5.8666]
[1747593790281,69.72,170.43,170.36,69.76]
[1747593790890,75.5851,170.43,170.4,5.866]
[1747593791186,70.12,170.47,170.36,69.76]
[1747593791484,69.7,170.45,170.36,69.76]
[1747593791692,69.68,170.47,170.37,3.994]
[1747593792289,5.8643,170.45,170.37,3.994]
[1747593792485,69.68,170.47,170.37,3.994]
[1747593793387,5.8635,170.48,170.44,5.8644]
[1747593793691,69.66,170.49,170.41,69.76]
[1747593794092,75.5231,170.49,170.45,5.8642]
[1747593794291,69.66,170.49,170.41,69.76]
[1747593796293,5.863,170.49,170.45,5.8642]
[1747593796488,75.483,170.49,170.45,5.8642]
[1747593796987,69.62,170.49,170.41,69.76]
[1747593797493,75.483,170.49,170.45,5.8642]
[1747593798201,69.62,170.49,170.46,5.8639]
[1747593798387,69.62,170.49,170.41,69.76]
[1747593798992,75.483,170.49,170.45,5.8642]
[1747593799396,69.62,170.49,170.41,69.76]
[1747593799689,5.8636,170.48,170.41,69.76]
[1747593799894,5.8636,170.48,170.44,5.8644]
[1747593800496,75.483,170.49,170.45,5.8641]
[1747593800897,69.62,170.49,170.45,5.8641]
[1747593801197,5.8633,170.48,170.44,5.8644]
[1747593801391,69.62,170.49,170.44,5.8644]
[1747593801696,69.62,170.49,170.41,69.76]
[1747593801899,139.36,170.49,170.37,3.994]
[1747593802096,139.36,170.49,170.38,69.74]
[1747593802297,153.50639773,170.49,170.38,69.74]
[1747593802898,5.8656,170.42,170.38,69.74]
[1747593803197,69.54,170.44,170.38,69.74]
[1747593803496,5.8653,170.43,170.39,5.8661]
[1747593803705,69.54,170.44,170.39,5.8661]
[1747593803900,69.54,170.44,170.38,69.74]
[1747593804101,139.28,170.44,170.34,69.74]
[1747593804299,5.8182,170.43,170.34,69.74]
[1747593804501,5.8659,170.41,170.34,69.74]
[1747593804706,5.8182,170.43,170.34,69.74]
[1747593804908,5.8654,170.42,170.38,5.8666]
[1747593805101,5.8182,170.43,170.34,69.74]
[1747593805805,11.6834,170.43,170.34,69.74]
[1747593806105,5.8182,170.43,170.34,69.74]
[1747593806308,145.1447,170.44,170.39,5.8661]
[1747593806504,139.28,170.44,170.39,5.8661]
[1747593806703,139.28,170.44,170.34,69.74]
[1747593806911,5.8653,170.42,170.38,5.8664]
[1747593808110,139.28,170.44,170.34,69.74]
[1747593808910,5.8668,170.38,170.35,5.8677]
[1747593809407,5.8668,170.38,170.34,75.608]
[1747593809811,5.8665,170.39,170.34,69.74]
[1747593810109,139.28,170.44,170.34,69.74]
[1747593810607,5.8657,170.41,170.34,69.74]
[1747593811511,5.8654,170.42,170.34,69.74]
[1747593811810,5.8654,170.42,170.38,5.8664]
[1747593812310,5.8657,170.41,170.37,5.867]
[1747593812613,144.56157122,170.44,170.34,69.74]
[1747593812802,5.8666,170.39,170.35,5.8676]
[1747593813005,69.44,170.39,170.34,69.74]
[1747593813812,139.18,170.39,170.25,514.18571619]
[1747593814004,5.8156,170.38,170.26,69.76]
[1747593814204,5.8677,170.36,170.26,69.76]
[1747593814503,69.42,170.37,170.26,69.76]
[1747593814705,5.8675,170.36,170.32,5.8686]
[1747593814898,69.42,170.37,170.26,69.76]
[1747593815103,75.2356,170.38,170.26,69.76]
[1747593816213,69.42,170.38,170.26,69.76]
[1747593816614,75.2867,170.38,170.35,5.8677]
[1747593816910,75.2867,170.38,170.26,69.76]
[1747593816911,69.42,170.38,170.32,69.4]
[1747593817108,5.8666,170.39,170.35,5.8674]
[1747593818913,5.8667,170.38,170.35,5.8674]
[1747593819714,5.8665,170.39,170.35,5.8674]
[1747593820820,5.8665,170.39,170.36,5.8673]
[1747593821011,69.76,170.4,170.36,5.8673]
[1747593822518,69.76,170.4,170.35,5.8676]
[1747593823114,5.8665,170.39,170.35,5.8676]
[1747593823424,5.8118,170.42,170.32,69.4]
[1747593823628,69.32,170.43,170.32,69.4]
[1747593823819,69.4,170.44,170.32,69.4]
[1747593824020,2.94920404,170.43,170.39,5.8662]
[1747593824225,138.72,170.44,170.37,69.4]
[1747593824427,5.28157122,170.45,170.37,69.4]
[1747593824919,5.28157122,170.45,170.43,5.8649]
[1747593825130,5.28157122,170.45,170.37,69.4]
[1747593825319,11.14597122,170.45,170.37,69.4]
[1747593825520,5.28157122,170.45,170.37,69.4]
[1747593826320,5.866,170.4,170.37,75.267]
[1747593826531,5.28157122,170.45,170.37,75.267]
[1747593826825,5.8653,170.42,170.37,75.267]
[1747593827021,5.28157122,170.45,170.37,69.4]
[1747593827226,2.95763938,170.44,170.37,69.4]
[1747593827423,5.8648,170.44,170.39,5.866]
[1747593827720,75.0288,170.47,170.39,5.866]
[1747593827925,2.9579052,170.46,170.39,5.866]
[1747593828128,2.9579052,170.45,170.39,5.866]
[1747593828326,5.8652,170.43,170.39,5.866]
[1747593828820,5.8653,170.42,170.38,5.8666]
[1747593829135,69.26,170.42,170.37,69.4]
[1747593830031,5.8661,170.4,170.37,75.267]
[1747593830833,5.8661,170.4,170.37,69.4]
[1747593831633,5.8661,170.4,170.37,75.267]
[1747593831932,69.22,170.43,170.37,69.4]
[1747593832232,69.22,170.43,170.39,5.8661]
[1747593832529,75.0852,170.43,170.39,5.8661]
[1747593832926,69.22,170.43,170.37,69.4]
[1747593833322,5.8644,170.45,170.37,69.4]
[1747593834024,5.8646,170.44,170.37,69.4]
[1747593834232,138.6,170.46,170.41,5.8656]
[1747593834428,69.4,170.5,170.37,69.4]
[1747593834628,72.15630184,170.49,170.37,69.4]
[1747593834829,5.8639,170.47,170.37,69.4]
[1747593835128,2.95630184,170.48,170.37,69.4]
[1747593835129,69.2,170.49,170.37,69.4]
[1747593835430,5.8639,170.47,170.37,69.4]
[1747593835835,69.2,170.49,170.37,69.4]
[1747593836126,2.95647056,170.48,170.42,5.8653]
[1747593836331,2.95647056,170.47,170.37,69.4]
[1747593836631,69.2,170.49,170.37,69.4]
[1747593836831,2.95609802,170.48,170.37,69.4]
[1747593837024,2.95609802,170.47,170.37,69.4]
[1747593837225,69.2,170.49,170.37,69.4]
[1747593837428,5.8641,170.46,170.37,69.4]
[1747593838032,5.8641,170.46,170.42,5.8652]
[1747593838632,5.8637,170.47,170.43,5.8649]
[1747593838834,5.8637,170.47,170.37,69.4]
[1747593839034,5.8637,170.47,170.37,73.3652]
[1747593839231,5.8637,170.47,170.43,5.8648]
[1747593839630,5.8643,170.46,170.37,73.3652]
[1747593839829,5.8643,170.46,170.42,5.8652]
[1747593840130,5.8637,170.47,170.37,73.3652]
[1747593840335,69.12,170.48,170.37,73.3652]
[1747593840522,2.95604802,170.47,170.42,5.8651]
[1747593840728,69.12,170.48,170.42,5.8651]
[1747593841033,2.95537197,170.47,170.42,5.8651]
[1747593841223,69.12,170.48,170.42,5.8651]
[1747593841534,2.9553408,170.47,170.37,69.4]
[1747593841737,2.9553408,170.46,170.37,69.4]
[1747593841930,2.9553408,170.45,170.37,69.4]
[1747593842130,69.12,170.48,170.37,69.4]
[1747593842329,2.95742106,170.47,170.37,69.4]
[1747593842534,2.95742106,170.46,170.37,69.4]
[1747593842736,5.8653,170.43,170.4,5.8657]
[1747593843033,69.12,170.48,170.37,69.4]
[1747593843234,5.8649,170.44,170.37,69.4]
[1747593843938,69.12,170.48,170.37,69.4]
[1747593844235,2.96332324,170.47,170.37,69.4]
[1747593844430,2.96332324,170.46,170.37,69.4]
[1747593844630,78.01452324,170.45,170.37,69.4]
[1747593844843,2.96332324,170.44,170.37,69.4]
[1747593845026,69.06,170.43,170.37,69.4]
[1747593846235,74.9252,170.43,170.39,5.866]
[1747593846637,74.9252,170.43,170.37,69.4]
[1747593846842,69.06,170.43,170.37,69.4]
[1747593847440,74.9252,170.43,170.37,69.4]
[1747593848131,74.9252,170.43,170.39,5.8661]
[1747593848331,5.8654,170.42,170.39,5.8661]
[1747593848636,69.06,170.43,170.37,69.4]
[1747593848836,2.96113374,170.42,170.37,69.4]
[1747593849037,5.8654,170.42,170.37,69.4]
[1747593849234,69.06,170.43,170.37,69.4]
[1747593849845,74.925,170.43,170.39,5.8661]
[1747593850138,69.06,170.43,170.39,5.8661]
[1747593850339,5.8657,170.41,170.38,5.8667]
[1747593850538,69.06,170.43,170.37,69.4]
[1747593850938,69.06,170.43,170.4,5.8657]
[1747593851537,69.06,170.43,170.41,5.8655]
[1747593852142,69.06,170.43,170.4,5.8659]
[1747593852845,69.06,170.43,170.39,5.8663]
[1747593853342,69.06,170.43,170.41,5.8656]
[1747593853543,68.96,170.45,170.41,5.8656]
[1747593853743,2.96319048,170.44,170.37,69.4]
[1747593854044,68.96,170.46,170.37,69.4]
[1747593854244,2.96318857,170.45,170.37,69.4]
[1747593854444,8.82788857,170.44,170.41,5.8655]
[1747593854644,77.86233192,170.48,170.37,69.4]
[1747593854844,71.90198577,170.47,170.37,69.4]
[1747593855044,2.96198577,170.46,170.38,68.94]
[1747593855248,2.9619939,170.45,170.38,68.94]
[1747593855545,5.8643,170.46,170.38,68.94]
[1747593856138,5.8426,170.49,170.38,68.94]
[1747593856344,71.88229643,170.48,170.39,3.9723]
[1747593856544,2.96229643,170.47,170.39,3.9723]
[1747593856746,74.7834,170.48,170.39,3.9723]
[1747593856944,2.96201461,170.47,170.39,3.9723]
[1747593857246,2.9620775,170.46,170.45,5.8642]
[1747593857841,5.8634,170.48,170.45,5.8642]
[1747593858134,2.96142333,170.47,170.45,5.8642]
[1747593858338,5.8634,170.48,170.45,5.8642]
[1747593858543,2.96104693,170.47,170.45,5.8642]
[1747593858743,5.8634,170.48,170.45,5.8642]
[1747593858944,2.96033554,170.47,170.45,5.8642]
[1747593859143,68.88,170.49,170.45,5.8642]
[1747593859347,5.8642,170.46,170.42,69.02]
[1747593859746,5.8642,170.46,170.42,74.8851]
[1747593859947,5.8642,170.46,170.42,69.02]
[1747593860350,5.8642,170.46,170.43,5.8647]
[1747593860651,68.88,170.49,170.42,69.02]
[1747593860950,2.96261933,170.48,170.43,5.8647]
[1747593861150,2.96261933,170.47,170.42,69.02]
[1747593861350,2.96261933,170.46,170.42,69.02]
[1747593861551,2.96261933,170.45,170.43,5.865]
[1747593861744,5.8638,170.47,170.43,5.865]
[1747593862037,2.96311553,170.46,170.42,69.02]
[1747593862241,2.96311553,170.45,170.42,69.02]
[1747593862452,5.8638,170.47,170.42,69.02]
[1747593862650,2.96342506,170.46,170.42,69.02]
[1747593862850,5.8638,170.47,170.42,69.02]
[1747593863053,2.96299689,170.46,170.42,69.02]
[1747593863251,5.8638,170.47,170.42,69.02]
[1747593863451,8.82697775,170.46,170.43,5.8649]
[1747593863759,2.96307775,170.45,170.42,69.02]
[1747593863957,5.8654,170.42,170.38,69.02]
[1747593864248,2.96202748,170.41,170.38,69.02]
[1747593864439,5.8654,170.42,170.38,69.02]
[1747593864642,2.9625919,170.41,170.39,5.8663]
[1747593864842,5.8651,170.43,170.38,69.02]
[1747593865045,2.96231404,170.42,170.38,69.02]
[1747593865252,2.96244644,170.41,170.39,5.866]
[1747593865449,5.8654,170.42,170.38,69.02]
[1747593865650,2.96270977,170.41,170.38,74.8865]
[1747593865946,8.82870241,170.4,170.34,69.02]
[1747593866154,68.82,170.44,170.34,69.02]
[1747593866356,2.96238265,170.43,170.36,5.867]
[1747593866651,2.96238265,170.42,170.36,5.867]
[1747593866951,2.96238265,170.41,170.36,5.867]
[1747593867250,68.82,170.44,170.34,69.02]
[1747593867251,2.96238265,170.4,170.37,5.8669]
[1747593867455,68.82,170.44,170.37,5.8669]
[1747593867642,2.96270706,170.43,170.34,69.02]
[1747593867842,2.96270706,170.42,170.34,69.02]
[1747593868049,74.6847,170.44,170.34,69.02]
[1747593868249,2.96362548,170.43,170.34,69.02]
[1747593868549,68.82,170.44,170.34,69.02]
[1747593868749,2.96451973,170.43,170.34,69.02]
[1747593868951,68.82,170.44,170.41,5.8656]
[1747593869154,5.28157122,170.45,170.4,69.02]
[1747593869450,5.28157122,170.45,170.42,5.8651]
[1747593870246,2.96594651,170.44,170.39,69.02]
[1747593870453,2.96559734,170.43,170.39,69.02]
[1747593870651,5.28157122,170.45,170.39,69.02]
[1747593870853,5.8652,170.43,170.39,74.886]
[1747593871752,5.8647,170.44,170.4,5.8658]
[1747593871949,2.96459344,170.43,170.39,69.02]
[1747593872150,74.04157122,170.47,170.39,69.02]
[1747593872353,5.8652,170.43,170.39,74.886]
[1747593872651,2.96431748,170.42,170.39,69.02]
[1747593872852,5.8652,170.43,170.4,5.866]
[1747593873054,2.96431748,170.42,170.4,5.866]
[1747593873252,5.8652,170.43,170.39,69.02]
[1747593873449,2.9644171,170.42,170.39,69.02]
[1747593873655,8.82977231,170.41,170.39,69.02]
[1747593873952,74.04157122,170.47,170.39,69.02]
[1747593874154,5.8654,170.42,170.39,69.02]
[1747593874454,2.96413865,170.41,170.39,69.02]
[1747593874653,74.04157122,170.47,170.39,69.02]
[1747593874859,2.96468429,170.46,170.39,69.02]
[1747593875155,2.96468429,170.45,170.39,69.02]
[1747593875956,68.68,170.47,170.39,69.02]
[1747593876253,2.96593584,170.46,170.39,69.02]
[1747593876456,5.864,170.46,170.39,69.02]
[1747593876648,68.68,170.47,170.39,69.02]
[1747593876848,2.96506358,170.46,170.39,69.02]
[1747593877049,68.66,170.48,170.39,69.02]
[1747593877245,2.96532134,170.47,170.39,69.02]
[1747593877454,2.96532134,170.46,170.39,137.68]
[1747593877651,74.5235,170.48,170.39,137.68]
[1747593877849,2.9645555,170.47,170.39,137.68]
[1747593878049,2.96456742,170.46,170.44,5.8644]
[1747593878251,5.8636,170.47,170.44,5.8644]
[1747593878657,68.66,170.48,170.44,5.8644]
[1747593878955,2.92070873,170.47,170.44,5.8644]
[1747593879156,68.66,170.48,170.43,5.8648]
[1747593879354,2.92058423,170.47,170.43,5.8648]
[1747593879557,5.8636,170.47,170.39,137.68]
[1747593880155,8.78521984,170.46,170.42,5.8651]
[1747593880360,5.864,170.46,170.42,5.8651]
[1747593880658,5.8644,170.45,170.42,5.8651]
[1747593880857,68.66,170.48,170.41,5.8656]
[1747593881150,2.92083797,170.47,170.41,5.8656]
[1747593881357,2.92083797,170.46,170.39,69.02]
[1747593881550,2.92083797,170.45,170.39,69.02]
[1747593881750,5.8656,170.42,170.39,69.02]